[Event "Budapest Chess Festival 2024"]
[Site "Budapest"]
[Date "2024.05.31"]
[Round "9.5"]
[White "Deuer, Marius"]
[Black "Costa, Leonardo"]
[Result "0-1"]
[ECO "E41"]
[WhiteElo "2436"]
[BlackElo "2486"]
[Annotator "TA"]
[PlyCount "29"]
[EventDate "2024.05.20"]
[EventType "swiss"]
[EventCountry "HUN"]
[SourceTitle "playchess.com"]
[Source "ChessBase"]
[SourceQuality "1"]
[TimeControl "40/5400+30:1800+30"]

{[%evp 13,29,18,9,15,0,4,20,0,12,-14,0,-6,15,0,0,-81,-65,-65]} 1. d4 {[%emt 0:00:32]} Nf6 {[%emt 0:00:34]} 2. c4 {[%emt 0:00:04]} e6 {[%emt 0:00:02]} 3. Nc3 {[%emt 0:00:03]} Bb4 {[%emt 0:00:04]} 4. e3 {[%emt 0:00:04]} c5 {[%emt 0:00:04]} 5. Bd3 {[%emt 0:00:05]} Nc6 {[%emt 0:00:04]} 6. Nge2 {[%emt 0:00:04]} d5 {[%emt 0:04:49]} 7. cxd5 {[%emt 0:00:33]} exd5 {[%emt 0:00:03]} 8. a3 {[%emt 0:01:22]} Bxc3+ {[%emt 0:01:52]} 9. bxc3 {[%emt 0:00:11]} O-O {[%emt 0:04:30]} 10. dxc5 {[%emt 0:20:29] The position is equal.} Ne4 {[%emt 0:17:15]} 11. Qc2 {[%emt 0:07:33]} Ne5 {[%emt 0:03:22] Excellent horsemanship.} 12. Nf4 {[%emt 0:26:18]} Bf5 {[%emt 0:15:03]} 13. O-O {[%emt 0:04:33] [#] Threatens to win with f3.} Re8 {[%emt 0:12:37]} 14. f3 {[%emt 0:16:08]} (14. Bxe4 $11 dxe4 (14... Bxe4 15. Qd1 $11) 15. Rb1) 14... Nxd3 $17 {[%emt 0:00:48]} 15. Nxd3 {[%emt 0:00:57] Weighted Error Value: White=0.29 (precise) /Black=0.04 (flawless) .  Mistake:       	White=1     	---        Inaccurate:     	White=1     	---        OK:         	---       	Black=4      Best:        	White=1     	Black=2} 0-1

[Event "Budapest Chess Festival 2024"]
[Site "Budapest"]
[Date "2024.05.31"]
[Round "9.6"]
[White "Cabarkapa, Novak"]
[Black "Shohat, Yotam"]
[Result "1/2-1/2"]
[ECO "B22"]
[WhiteElo "2444"]
[BlackElo "2410"]
[Annotator "RC"]
[PlyCount "87"]
[EventDate "2024.05.20"]
[EventType "swiss"]
[EventCountry "HUN"]
[SourceTitle "playchess.com"]
[Source "ChessBase"]
[SourceQuality "1"]
[TimeControl "40/5400+30:1800+30"]

1. e4 {[%emt 0:00:42]} c5 {[%emt 0:00:33]} 2. c3 {[%emt 0:00:04]} Nf6 {[%emt 0:00:18]} 3. e5 {[%emt 0:00:05]} Nd5 {[%emt 0:00:04]} 4. Nf3 {[%emt 0:00:07]} Nc6 {[%emt 0:00:05]} 5. d4 {[%emt 0:00:04]} cxd4 {[%emt 0:00:06]} 6. cxd4 {[%emt 0:00:05]} d6 {[%emt 0:00:04]} 7. Bc4 {[%emt 0:00:06]} dxe5 {[%emt 0:00:42]} 8. dxe5 {[%emt 0:00:18]} Ndb4 {[%emt 0:00:10]} 9. O-O {[%emt 0:00:22]} Qxd1 {[%emt 0:04:39]} 10. Rxd1 {[%emt 0:00:09]} Bg4 {[%emt 0:00:52]} 11. Nc3 {[%emt 0:01:45]} Nc2 {[%emt 0:15:33]} 12. Rb1 {[%emt 0:18:00]} Bxf3 {[%emt 0:00:48]} 13. gxf3 {[%emt 0:00:31]} e6 {[%emt 0:01:58]} 14. f4 {[%emt 0:07:09]} N2d4 {[%emt 0:15:10]} 15. Nb5 {[%emt 0:16:31]} O-O-O {[%emt 0:04:35]} 16. Be3 {[%emt 0:09:59]} Bc5 {[%emt 0:09:10]} 17. b4 {[%emt 0:01:45]} Nxb5 {[%emt 0:00:33]} 18. Rxd8+ {[%emt 0:13:36]} Rxd8 {[%emt 0:02:32]} 19. Bxb5 {[%emt 0:00:16]} Bxe3 {[%emt 0:00:13]} 20. fxe3 {[%emt 0:00:06]} Rd2 {[%emt 0:01:43]} 21. Rc1 {[%emt 0:01:06]} Kd7 {[%emt 0:02:38]} 22. a3 {[%emt 0:02:50]} a6 {[%emt 0:03:21]} 23. Ba4 {[%emt 0:01:13]} Rd3 {[%emt 0:09:29]} 24. Rd1 {[%emt 0:00:40]} Rxd1+ {[%emt 0:02:29]} 25. Bxd1 {[%emt 0:00:23]} a5 {[%emt 0:00:05]} 26. bxa5 {[%emt 0:05:19]} Nxa5 {[%emt 0:01:01]} 27. Ba4+ {[%emt 0:00:23]} Kc7 {[%emt 0:07:49]} 28. Be8 {[%emt 0:00:04]} f6 {[%emt 0:00:18]} 29. exf6 {[%emt 0:00:03]} gxf6 {[%emt 0:00:04]} 30. Bb5 {[%emt 0:00:06]} Kd6 {[%emt 0:09:15]} 31. Kf2 {[%emt 0:00:24]} Kd5 {[%emt 0:05:46]} 32. Bd3 {[%emt 0:12:18]} h6 {[%emt 0:01:45]} 33. Kf3 {[%emt 0:01:08]} f5 {[%emt 0:00:18]} 34. e4+ {[%emt 0:00:18]} fxe4+ {[%emt 0:00:12]} 35. Bxe4+ {[%emt 0:00:06]} Kd4 {[%emt 0:00:23]} 36. a4 {[%emt 0:05:39]} b6 {[%emt 0:00:05]} 37. f5 {[%emt 0:01:13]} exf5 {[%emt 0:01:06]} 38. Bxf5 {[%emt 0:00:04]} Nc4 {[%emt 0:00:42]} 39. Kf4 {[%emt 0:00:27]} Nb2 {[%emt 0:01:44]} 40. Bd7 {[%emt 0:00:00]} Kd5 {[%emt 0:00:00]} 41. Kf5 {[%emt 0:00:41]} Kd6 {[%emt 0:01:02]} 42. Bb5 {[%emt 0:00:09]} Ke7 {[%emt 0:00:05]} 43. Kg6 {[%emt 0:00:46]} Kf8 {[%emt 0:02:21]} 44. Kxh6 {[%emt 0:00:23]} 1/2-1/2

[Event "Budapest Chess Festival 2024"]
[Site "Budapest"]
[Date "2024.05.31"]
[Round "9.7"]
[White "Dragnev, Valentin"]
[Black "Shagbazyan, Taron"]
[Result "1-0"]
[ECO "B12"]
[WhiteElo "2566"]
[BlackElo "2403"]
[Annotator "RC"]
[PlyCount "187"]
[EventDate "2024.05.20"]
[EventType "swiss"]
[EventCountry "HUN"]
[SourceTitle "playchess.com"]
[Source "ChessBase"]
[SourceQuality "1"]
[TimeControl "40/5400+30:1800+30"]

1. e4 {[%emt 0:00:32]} c6 {[%emt 0:07:09]} 2. d4 {[%emt 0:00:03]} d5 {[%emt 0:00:05]} 3. e5 {[%emt 0:00:06]} Bf5 {[%emt 0:00:45]} 4. h4 {[%emt 0:00:08]} h5 {[%emt 0:00:04]} 5. c4 {[%emt 0:00:07]} e6 {[%emt 0:07:44]} 6. Nc3 {[%emt 0:00:37]} Bb4 {[%emt 0:05:37]} 7. cxd5 {[%emt 0:01:50]} Qxd5 {[%emt 0:06:59]} 8. Nge2 {[%emt 0:03:33]} Ne7 {[%emt 0:22:18]} 9. a3 {[%emt 0:01:39]} Bxc3+ {[%emt 0:02:47]} 10. Nxc3 {[%emt 0:00:24]} Qd7 {[%emt 0:02:35]} 11. Bg5 {[%emt 0:03:06]} Na6 {[%emt 0:03:28]} 12. Qd2 {[%emt 0:06:54]} Nc7 {[%emt 0:10:34]} 13. Be2 {[%emt 0:01:51]} Ncd5 {[%emt 0:00:07]} 14. O-O {[%emt 0:20:05]} f6 {[%emt 0:00:12]} 15. Bf4 {[%emt 0:03:34]} Nxf4 {[%emt 0:00:45]} 16. Qxf4 {[%emt 0:00:02]} Ng6 {[%emt 0:04:03]} 17. Qe3 {[%emt 0:01:09]} fxe5 {[%emt 0:00:33]} 18. Rad1 {[%emt 0:06:53]} Qc7 {[%emt 0:03:06]} 19. g3 {[%emt 0:01:01]} exd4 {[%emt 0:09:55]} 20. Qxd4 {[%emt 0:07:45]} O-O {[%emt 0:03:04]} 21. Bxh5 {[%emt 0:04:38]} Ne5 {[%emt 0:00:03]} 22. Qe3 {[%emt 0:03:58]} Rad8 {[%emt 0:02:37]} 23. Be2 {[%emt 0:05:13]} a6 {[%emt 0:01:10]} 24. h5 {[%emt 0:04:05]} Rxd1 {[%emt 0:00:40]} 25. Rxd1 {[%emt 0:01:19]} Ng4 {[%emt 0:00:44]} 26. Bxg4 {[%emt 0:02:54]} Bxg4 {[%emt 0:00:04]} 27. Rd4 {[%emt 0:00:07]} Bxh5 {[%emt 0:03:50]} 28. Qxe6+ {[%emt 0:00:05]} Qf7 {[%emt 0:01:29]} 29. Qxf7+ {[%emt 0:00:41]} Rxf7 {[%emt 0:00:24]} 30. Ne4 {[%emt 0:01:14]} Re7 {[%emt 0:00:17]} 31. f4 {[%emt 0:00:37]} Bg4 {[%emt 0:01:18]} 32. Nf2 {[%emt 0:04:36]} Re1+ {[%emt 0:00:50]} 33. Kg2 {[%emt 0:00:01]} Be6 {[%emt 0:00:11]} 34. Rd8+ {[%emt 0:00:24]} Kf7 {[%emt 0:00:12]} 35. Nd3 {[%emt 0:00:13]} Rb1 {[%emt 0:01:17]} 36. Rb8 {[%emt 0:01:10]} Bd5+ {[%emt 0:00:20]} 37. Kf2 {[%emt 0:00:16]} c5 {[%emt 0:00:18]} 38. Ke3 {[%emt 0:04:01]} c4 {[%emt 0:00:12]} 39. Ne5+ {[%emt 0:00:05]} Ke7 {[%emt 0:01:28]} 40. Kd4 {[%emt 0:00:00]} Rd1+ {[%emt 0:00:00]} 41. Kc5 {[%emt 0:01:47]} Bh1 {[%emt 0:20:40]} 42. Kxc4 {[%emt 0:08:31]} Rc1+ {[%emt 0:00:22]} 43. Kd4 {[%emt 0:00:52]} Rd1+ {[%emt 0:00:13]} 44. Ke3 {[%emt 0:02:58]} Rg1 {[%emt 0:00:49]} 45. g4 {[%emt 0:01:20]} Re1+ {[%emt 0:03:09]} 46. Kd2 {[%emt 0:03:00]} Rf1 {[%emt 0:01:31]} 47. Rh8 {[%emt 0:18:06]} Bd5 {[%emt 0:00:25]} 48. Rc8 {[%emt 0:04:30]} Ke6 {[%emt 0:01:42]} 49. Re8+ {[%emt 0:00:06]} Kd6 {[%emt 0:00:14]} 50. Rd8+ {[%emt 0:00:06]} Ke6 {[%emt 0:00:11]} 51. Re8+ {[%emt 0:01:22]} Kd6 {[%emt 0:00:04]} 52. Rd8+ {[%emt 0:00:05]} Ke6 {[%emt 0:00:24]} 53. Ng6 {[%emt 0:00:02]} Bf3 {[%emt 0:01:23]} 54. Rb8 {[%emt 0:05:01]} Bxg4 {[%emt 0:02:46]} 55. Rxb7 {[%emt 0:00:01]} Kf5 {[%emt 0:00:45]} 56. Nh4+ {[%emt 0:01:10]} Ke4 {[%emt 0:00:17]} 57. Ng6 {[%emt 0:02:21]} Kf5 {[%emt 0:00:22]} 58. Ne5 {[%emt 0:00:40]} Rxf4 {[%emt 0:01:06]} 59. Nd3 {[%emt 0:00:01]} Rd4 {[%emt 0:01:18]} 60. Kc3 {[%emt 0:00:01]} Rd6 {[%emt 0:01:16]} 61. Rxg7 {[%emt 0:00:25]} Be2 {[%emt 0:00:48]} 62. Nc5 {[%emt 0:00:22]} Rc6 {[%emt 0:00:22]} 63. Kd4 {[%emt 0:00:09]} Rd6+ {[%emt 0:00:12]} 64. Ke3 {[%emt 0:00:36]} Bc4 {[%emt 0:01:00]} 65. b3 {[%emt 0:00:35]} Bd5 {[%emt 0:00:34]} 66. Ra7 {[%emt 0:00:27]} Ke5 {[%emt 0:00:34]} 67. Re7+ {[%emt 0:01:15]} Kf5 {[%emt 0:00:09]} 68. Rh7 {[%emt 0:00:16]} Bg8 {[%emt 0:01:26]} 69. Rg7 Bd5 {[%emt 0:00:20]} 70. Rh7 {[%emt 0:01:12]} Bg8 {[%emt 0:00:15]} 71. Rh5+ {[%emt 0:00:02]} Kg6 {[%emt 0:00:07]} 72. Rh4 {[%emt 0:01:05]} Kf5 {[%emt 0:01:48]} 73. Ra4 {[%emt 0:00:34]} Rh6 {[%emt 0:00:38]} 74. Ra5 {[%emt 0:00:46]} Kg4 {[%emt 0:00:32]} 75. Kd4 {[%emt 0:00:28]} Kf4 {[%emt 0:00:25]} 76. b4 {[%emt 0:00:22]} Rd6+ {[%emt 0:00:29]} 77. Kc3 {[%emt 0:00:00]} Ke3 {[%emt 0:00:31]} 78. Rxa6 {[%emt 0:00:14]} Rd1 {[%emt 0:00:25]} 79. Rg6 {[%emt 0:00:41]} Bd5 {[%emt 0:00:42]} 80. Rg3+ {[%emt 0:00:45]} Bf3 {[%emt 0:00:08]} 81. Rg7 {[%emt 0:00:38]} Rc1+ {[%emt 0:00:25]} 82. Kb2 {[%emt 0:00:02]} Rc4 {[%emt 0:00:42]} 83. Rd7 {[%emt 0:00:53]} Bc6 {[%emt 0:00:32]} 84. Rd6 {[%emt 0:00:44]} Bf3 {[%emt 0:00:34]} 85. Rd3+ {[%emt 0:00:39]} Ke2 {[%emt 0:00:20]} 86. Rc3 {[%emt 0:00:27]} Rd4 {[%emt 0:00:05]} 87. Nb3 {[%emt 0:00:17]} Rd1 {[%emt 0:01:07]} 88. Nc1+ {[%emt 0:00:36]} Kf2 {[%emt 0:00:19]} 89. b5 {[%emt 0:00:24]} Rd5 {[%emt 0:00:27]} 90. Nd3+ {[%emt 0:00:26]} Kg1 {[%emt 0:00:42]} 91. a4 {[%emt 0:00:41]} Bd1 {[%emt 0:00:18]} 92. Ka3 {[%emt 0:00:32]} Rd4 {[%emt 0:00:37]} 93. Nc5 {[%emt 0:00:31]} Be2 {[%emt 0:00:39]} 94. b6 {[%emt 0:00:18]} 1-0

[Event "Budapest Chess Festival 2024"]
[Site "Budapest"]
[Date "2024.05.31"]
[Round "9.8"]
[White "Kozak, Adam"]
[Black "Juhasz, Agoston"]
[Result "1-0"]
[ECO "B95"]
[WhiteElo "2607"]
[BlackElo "2431"]
[Annotator "TA"]
[PlyCount "55"]
[EventDate "2024.05.20"]
[EventType "swiss"]
[EventCountry "HUN"]
[SourceTitle "playchess.com"]
[Source "ChessBase"]
[SourceQuality "1"]
[TimeControl "40/5400+30:1800+30"]

{[%evp 11,55,10,7,0,0,-4,22,-21,-21,-20,-16,-16,-9,-19,-18,-24,0,23,38,0,0,0,0,0,33,15,78,77,80,79,104,100,169,169,167,183,190,159,401,408,392,361,1147,1134,1552,1503]} 1. e4 {[%emt 0:00:32]} c5 {[%emt 0:00:49]} 2. Nf3 {[%emt 0:00:08]} d6 {[%emt 0:00:04]} 3. d4 {[%emt 0:00:06]} cxd4 {[%emt 0:00:04]} 4. Nxd4 {[%emt 0:00:07]} Nf6 {[%emt 0:00:03]} 5. Nc3 {[%emt 0:00:11]} a6 {[%emt 0:00:05]} 6. Bg5 {[%emt 0:00:07]} e6 {[%emt 0:01:00]} 7. a3 {[%emt 0:01:47]} Be7 {[%emt 0:01:22]} 8. Qd2 {[%emt 0:03:18]} h6 {[%emt 0:01:00]} 9. Be3 {[%emt 0:04:45] The position is equal.} Ng4 {[%emt 0:04:39]} 10. O-O-O {[%emt 0:00:41][%cal Oh2h4]} Bd7 {[%emt 0:05:17]} 11. f4 {[%emt 0:02:39]} Nxe3 {[%emt 0:02:06]} 12. Qxe3 {[%emt 0:00:02]} Nc6 {[%emt 0:00:54]} 13. Kb1 {[%emt 0:12:08]} b5 {[%emt 0:05:54]} 14. e5 {[%emt 0:09:32] exd6 is the strong threat.} d5 {[%emt 0:16:33]} 15. Nxc6 {[%emt 0:00:14]} (15. Qg3 $5) 15... Bxc6 {[%emt 0:00:03]} 16. f5 {[%emt 0:00:18]} exf5 {[%emt 0:03:01]} 17. Be2 {[%emt 0:08:08][%cal Bf1e2,Be2f3,Bf3d5][%mdl 32] Threatens to win with Bf3.} O-O {[%emt 0:08:45][%cal Od5d4]} 18. Bf3 {[%emt 0:01:54][%cal Rc3d5]} Qc7 {[%emt 0:04:41]} (18... d4 $1 $11 19. Rxd4 Qb6) 19. Nxd5 $16 {[%emt 0:01:27]} Bxd5 {[%emt 0:00:07]} 20. Bxd5 {[%emt 0:00:11]} Rac8 {[%emt 0:00:33][%cal Ob5b4]} 21. Qe2 {[%emt 0:03:33] Active counter play!} Rfd8 {[%emt 0:07:19]} (21... g6 $16 {was worth a try.}) 22. e6 $18 {[%emt 0:07:08][%cal Be5e6,Be6f7][%mdl 32]} g6 {[%emt 0:12:34]} 23. exf7+ {[%emt 0:01:51]} Kg7 {[%emt 0:00:42]} 24. Bb3 {[%emt 0:01:54]} Bf6 $2 {[%emt 0:01:37] [#] This move loses the game for Black.} (24... Bf8 $16 25. g4 fxg4 26. Qxg4 a5) 25. Rxd8 {[%emt 0:01:22]} Qxd8 {[%emt 0:00:22]} 26. Re1 {[%emt 0:01:35]} Kf8 {[%emt 0:04:20] Wards off Qe8+} (26... Qd4 27. c3 Qe4+ 28. Qxe4 fxe4 29. Rxe4 Rf8) 27. Qe6 {[%emt 0:04:55] Black is weak on the light squares} a5 {[%emt 0:01:24]} 28. Qa6 {[%emt 0:00:36] Weighted Error Value: White=0.08 (flawless) /Black=0.39.  Loses game:     	---       	Black=1      Mistake:       	---       	Black=3      Inaccurate:     	White=2     	Black=3      OK:         	White=7     	Black=6      Best:        	White=3     	Black=1} 1-0

[Event "Budapest Chess Festival 2024"]
[Site "Budapest"]
[Date "2024.05.31"]
[Round "9.9"]
[White "Gschnitzer, Adrian"]
[Black "Fernandez, Daniel Howard"]
[Result "0-1"]
[ECO "B07"]
[WhiteElo "2431"]
[BlackElo "2526"]
[Annotator "RC"]
[PlyCount "72"]
[EventDate "2024.05.20"]
[EventType "swiss"]
[EventCountry "HUN"]
[SourceTitle "playchess.com"]
[Source "ChessBase"]
[SourceQuality "1"]
[TimeControl "40/5400+30:1800+30"]

1. e4 {[%emt 0:00:33]} d6 {[%emt 0:12:52]} 2. d4 {[%emt 0:00:01]} Nf6 {[%emt 0:00:06]} 3. Nc3 {[%emt 0:00:25]} g6 {[%emt 0:00:02]} 4. Be3 {[%emt 0:02:28]} Bg7 {[%emt 0:01:28]} 5. Qd2 {[%emt 0:02:56]} c6 {[%emt 0:00:25]} 6. f3 {[%emt 0:07:55]} b5 {[%emt 0:01:03]} 7. h4 {[%emt 0:00:36]} a5 {[%emt 0:05:59]} 8. Nh3 {[%emt 0:12:41]} Bxh3 {[%emt 0:05:01]} 9. Rxh3 {[%emt 0:00:14]} h5 {[%emt 0:00:20]} 10. e5 {[%emt 0:10:52]} b4 {[%emt 0:01:41]} 11. Na4 {[%emt 0:02:03]} Nd5 {[%emt 0:02:08]} 12. e6 {[%emt 0:01:25]} fxe6 {[%emt 0:03:10]} 13. Bd3 {[%emt 0:00:27]} Kd7 {[%emt 0:04:25]} 14. a3 {[%emt 0:12:38]} Kc7 {[%emt 0:01:10]} 15. Kf2 {[%emt 0:04:04]} Nd7 {[%emt 0:01:04]} 16. c4 {[%emt 0:03:25]} Nxe3 {[%emt 0:05:31]} 17. Qxe3 {[%emt 0:00:02]} e5 {[%emt 0:01:26]} 18. d5 {[%emt 0:06:38]} c5 {[%emt 0:07:51]} 19. Be4 {[%emt 0:03:08]} Bh6 {[%emt 0:01:05]} 20. Qe1 {[%emt 0:03:26]} Qf8 {[%emt 0:02:22]} 21. b3 {[%emt 0:01:35]} g5 {[%emt 0:01:14]} 22. hxg5 {[%emt 0:00:26]} Bxg5 {[%emt 0:00:02]} 23. Nb2 {[%emt 0:01:48]} h4 {[%emt 0:00:17]} 24. Nd3 {[%emt 0:02:34]} Qh6 {[%emt 0:06:25]} 25. Ke2 {[%emt 0:01:28]} Nf6 {[%emt 0:03:44]} 26. Qg1 {[%emt 0:01:43]} Kb6 {[%emt 0:05:41]} 27. Ra2 {[%emt 0:06:17]} Nxe4 {[%emt 0:09:20]} 28. fxe4 {[%emt 0:00:01]} Qg6 {[%emt 0:00:27]} 29. Nf2 {[%emt 0:00:40]} Bf4 {[%emt 0:00:15]} 30. Rf3 {[%emt 0:05:13]} h3 {[%emt 0:01:25]} 31. axb4 {[%emt 0:02:45]} axb4 {[%emt 0:04:20]} 32. Rxa8 {[%emt 0:00:27]} Rxa8 {[%emt 0:00:14]} 33. Rxh3 {[%emt 0:00:35]} Ra2+ {[%emt 0:00:11]} 34. Kf3 {[%emt 0:00:04]} Qf7 {[%emt 0:00:53]} 35. g3 {[%emt 0:01:44]} Bg5+ {[%emt 0:04:08]} 36. Kg4 {[%emt 0:00:17]} Be3 {[%emt 0:01:53]} 0-1

[Event "Budapest Chess Festival 2024"]
[Site "Budapest"]
[Date "2024.05.31"]
[Round "9.10"]
[White "Vetoshko, Volodymyr"]
[Black "Willow, Jonah B"]
[Result "1-0"]
[ECO "C47"]
[WhiteElo "2505"]
[BlackElo "2417"]
[Annotator "TA"]
[PlyCount "71"]
[EventDate "2024.05.20"]
[EventType "swiss"]
[EventCountry "HUN"]
[SourceTitle "playchess.com"]
[Source "ChessBase"]
[SourceQuality "1"]
[TimeControl "40/5400+30:1800+30"]

{[%evp 16,71,0,0,3,0,0,0,54,59,60,53,131,142,128,70,67,81,69,70,99,90,93,96,89,37,121,133,116,111,138,132,262,254,285,230,223,158,461,454,443,465,465,464,470,470,470,470,470,470,470,470,470,470,470,470,464,462]} 1. e4 e5 {[%emt 0:07:38]} 2. Nf3 {[%emt 0:02:56]} Nc6 {[%emt 0:00:05]} 3. Nc3 {[%emt 0:04:25]} Nf6 {[%emt 0:01:00]} 4. d4 {[%emt 0:00:34]} Bb4 {[%emt 0:05:17]} 5. Nxe5 {[%emt 0:03:29]} Bxc3+ {[%emt 0:00:04]} 6. bxc3 {[%emt 0:00:05]} Qe7 {[%emt 0:00:02]} 7. Bd3 {[%emt 0:13:20]} Nxe5 {[%emt 0:01:04]} 8. dxe5 {[%emt 0:00:04]} Qxe5 {[%emt 0:00:07]} 9. O-O {[%emt 0:00:12]} O-O {[%emt 0:19:28]} 10. Qe1 {[%emt 0:13:47]} Re8 {[%emt 0:20:42][%cal Rf6e4]} 11. f4 {[%emt 0:11:02]} Qe7 {[%emt 0:11:41]} (11... Qe6 $1 $11) 12. e5 $14 {[%emt 0:01:35] Hoping for Qh4.} d5 $1 {[%emt 0:00:50]} 13. a4 {[%emt 0:11:46]} Qc5+ {[%emt 0:05:57]} (13... Ne4 $14) 14. Be3 $16 {[%emt 0:02:32]} Qe7 {[%emt 0:00:03]} 15. Qh4 {[%emt 0:10:37] White is much more active.} (15. exf6 Qxe3+ 16. Qxe3 Rxe3 $11) (15. Bd4 $1 $16 Ne4 16. c4) 15... Ne4 $14 {[%emt 0:03:21]} 16. Qxe7 {[%emt 0:00:09]} Rxe7 {[%emt 0:00:01]} 17. c4 {[%emt 0:00:35]} c6 {[%emt 0:05:58]} 18. cxd5 {[%emt 0:03:03]} cxd5 {[%emt 0:00:02]} 19. c4 $36 {[%emt 0:00:34][%mdl 2048] Black is under strong pressure.} Be6 {[%emt 0:01:00][%cal Bc8e6,Be6d5,Bd5c6][%mdl 32]} 20. Rfc1 {[%emt 0:05:40] Dodges d4} (20. a5 $16) 20... Rd7 {[%emt 0:02:53]} (20... d4 $14 21. Bxe4 (21. Bxd4 Rd8 $11) 21... dxe3) 21. cxd5 $16 {[%emt 0:02:06]} Bxd5 {[%emt 0:00:01] [#]} 22. Bxa7 $1 {[%emt 0:04:36][%mdl 512]} Bc6 {[%emt 0:01:38] [#]} 23. Ra3 {[%emt 0:00:13][%cal Oa4a5]} g5 {[%emt 0:05:28] [#]} (23... Rxa7 $16 24. Bxe4 Rd4 25. Bxc6 bxc6) 24. Bb6 $1 $18 {[%emt 0:01:52]} ({Resist} 24. Be3 $6 gxf4 25. Bxf4 Rd4 $16) 24... Nd2 {[%emt 0:04:05]} 25. a5 {[%emt 0:04:35][%cal Ba4a5,Ba5a6][%mdl 32]} gxf4 {[%emt 0:00:11]} 26. a6 {[%emt 0:00:46]} Rd5 $2 {[%emt 0:02:09] Black cannot hold the game after this.} (26... Rxd3 $16 {is a better chance.} 27. Rxd3 Rxa6) 27. Ba5 {[%emt 0:01:18] This pair of bishops is nice. White is clearly winning.} Nb3 {[%emt 0:02:40]} 28. Rxb3 {[%emt 0:00:17]} Rxa5 {[%emt 0:00:05]} 29. axb7 {[%emt 0:00:04]} Bxb7 {[%emt 0:00:13]} 30. Rxb7 {[%emt 0:00:04]} Rxe5 {[%emt 0:00:04]} 31. Bc4 {[%emt 0:01:41]} Rf5 {[%emt 0:00:25]} 32. Be2 {[%emt 0:00:22]} Kg7 {[%emt 0:00:35]} 33. Bf3 {[%emt 0:00:15]} Raa5 {[%emt 0:00:12]} 34. h3 {[%emt 0:00:20]} Ra2 {[%emt 0:00:56]} 35. Kh2 {[%emt 0:01:24]} Ra6 {[%emt 0:00:25]} 36. Rc4 {[%emt 0:00:36] Weighted Error Value: White=0.10 (very precise) /Black=0.34.  Loses game:     	---       	Black=1      Mistake:       	White=2     	Black=4      Inaccurate:     	---       	Black=1      OK:         	White=16    	Black=9      Best:        	White=2     	---        Strong:       	White=1     	Black=1} 1-0